Workbook

Sheet YENİDEN MODELLEME MALİYETLERİ
B1: MUTFAĞI YENİDEN MODELLEME MALİYETLERİ ÇALIŞMA SAYFASI
B3: Kategori | C3: Ürünler | D3: Miktar | E3: Tahmini Maliyet | F3: Gerçek Maliyet | G3: Toplam Tahmini Maliyet | H3: Toplam Gerçek Maliyet
B4: Dolaplar | C4: Alt dolaplar: Modüler Standart (doğrusal fit miktarı) | D4: 25 | E4: 5.00 ₺ | G4: =Veri[[#This Row],[Miktar]]*Veri[[#This Row],[Tahmini Maliyet]] -> 125 ₺ | H4: =Veri[[#This Row],[Miktar]]*Veri[[#This Row],[Gerçek Maliyet]] -> 0 ₺
B5: Dolaplar | C5: Üst dolaplar: Modüler Standart (doğrusal fit miktarı) | D5: 25 | E5: 3.50 ₺ | G5: =Veri[[#This Row],[Miktar]]*Veri[[#This Row],[Tahmini Maliyet]] -> 88 ₺ | H5: =Veri[[#This Row],[Miktar]]*Veri[[#This Row],[Gerçek Maliyet]] -> 0 ₺
B6: Temizlik Gereçleri | C6: Bulaşık makinesi: Standart | D6: 1 | E6: 250.00 ₺ | G6: =Veri[[#This Row],[Miktar]]*Veri[[#This Row],[Tahmini Maliyet]] -> 250 ₺ | H6: =Veri[[#This Row],[Miktar]]*Veri[[#This Row],[Gerçek Maliyet]] -> 0 ₺
B7: Temizlik Gereçleri | C7: Öğütücü: Standart | D7: 1 | E7: 175.00 ₺ | G7: =Veri[[#This Row],[Miktar]]*Veri[[#This Row],[Tahmini Maliyet]] -> 175 ₺ | H7: =Veri[[#This Row],[Miktar]]*Veri[[#This Row],[Gerçek Maliyet]] -> 0 ₺
B8: Pişirme Gereçleri | C8: Aralık: Sürgü Standardı | D8: 1 | E8: 375.00 ₺ | G8: =Veri[[#This Row],[Miktar]]*Veri[[#This Row],[Tahmini Maliyet]] -> 375 ₺ | H8: =Veri[[#This Row],[Miktar]]*Veri[[#This Row],[Gerçek Maliyet]] -> 0 ₺
B9: Pişirme Gereçleri | C9: Mikrodalga: Standart | D9: 1 | E9: 300.00 ₺ | G9: =Veri[[#This Row],[Miktar]]*Veri[[#This Row],[Tahmini Maliyet]] -> 300 ₺ | H9: =Veri[[#This Row],[Miktar]]*Veri[[#This Row],[Gerçek Maliyet]] -> 0 ₺
B10: Sayaçlar | C10: Düz yüzey (doğrusal fit miktarı) | D10: 23 | E10: 10.00 ₺ | G10: =Veri[[#This Row],[Miktar]]*Veri[[#This Row],[Tahmini Maliyet]] -> 230 ₺ | H10: =Veri[[#This Row],[Miktar]]*Veri[[#This Row],[Gerçek Maliyet]] -> 0 ₺
B11: Kapılar | C11: İç: Kaplamalı Som Nüve | D11: 1 | E11: 65.00 ₺ | G11: =Veri[[#This Row],[Miktar]]*Veri[[#This Row],[Tahmini Maliyet]] -> 65 ₺ | H11: =Veri[[#This Row],[Miktar]]*Veri[[#This Row],[Gerçek Maliyet]] -> 0 ₺
B12: Ekstralar | C12: Ekstralar: Anlık Sıcak Su Standardı | D12: 1 | E12: 120.00 ₺ | G12: =Veri[[#This Row],[Miktar]]*Veri[[#This Row],[Tahmini Maliyet]] -> 120 ₺ | H12: =Veri[[#This Row],[Miktar]]*Veri[[#This Row],[Gerçek Maliyet]] -> 0 ₺
B13: Ekstralar | C13: Ekstralar: Sabunluk | D13: 1 | E13: 40.00 ₺ | G13: =Veri[[#This Row],[Miktar]]*Veri[[#This Row],[Tahmini Maliyet]] -> 40 ₺ | H13: =Veri[[#This Row],[Miktar]]*Veri[[#This Row],[Gerçek Maliyet]] -> 0 ₺
B14: Musluklar | C14: Musluk: Mandal, Standart | D14: 1 | E14: 130.00 ₺ | G14: =Veri[[#This Row],[Miktar]]*Veri[[#This Row],[Tahmini Maliyet]] -> 130 ₺ | H14: =Veri[[#This Row],[Miktar]]*Veri[[#This Row],[Gerçek Maliyet]] -> 0 ₺
B15: Döşeme | C15: Laminat (fit kare miktarı) | D15: 165 | E15: 3.50 ₺ | G15: =Veri[[#This Row],[Miktar]]*Veri[[#This Row],[Tahmini Maliyet]] -> 578 ₺ | H15: =Veri[[#This Row],[Miktar]]*Veri[[#This Row],[Gerçek Maliyet]] -> 0 ₺
B16: Çamaşır Gereçleri | C16: Rondela: Standart | D16: 1 | E16: 500.00 ₺ | G16: =Veri[[#This Row],[Miktar]]*Veri[[#This Row],[Tahmini Maliyet]] -> 500 ₺ | H16: =Veri[[#This Row],[Miktar]]*Veri[[#This Row],[Gerçek Maliyet]] -> 0 ₺
B17: Çamaşır Gereçleri | C17: Kurutucu: Standart | D17: 1 | E17: 375.00 ₺ | G17: =Veri[[#This Row],[Miktar]]*Veri[[#This Row],[Tahmini Maliyet]] -> 375 ₺ | H17: =Veri[[#This Row],[Miktar]]*Veri[[#This Row],[Gerçek Maliyet]] -> 0 ₺
B18: Aydınlatma | C18: Aydınlatma: Girintili Silindir | D18: 4 | E18: 35.00 ₺ | G18: =Veri[[#This Row],[Miktar]]*Veri[[#This Row],[Tahmini Maliyet]] -> 140 ₺ | H18: =Veri[[#This Row],[Miktar]]*Veri[[#This Row],[Gerçek Maliyet]] -> 0 ₺
B19: Buzdolapları | C19: Buzdolabı: Bağlantısız, Lüks | D19: 1 | E19: 1,200.00 ₺ | G19: =Veri[[#This Row],[Miktar]]*Veri[[#This Row],[Tahmini Maliyet]] -> 1,200 ₺ | H19: =Veri[[#This Row],[Miktar]]*Veri[[#This Row],[Gerçek Maliyet]] -> 0 ₺
B20: Lavabolar | C20: Çift kaseli Paslanmaz Çelik Lüks | D20: 1 | E20: 125.00 ₺ | G20: =Veri[[#This Row],[Miktar]]*Veri[[#This Row],[Tahmini Maliyet]] -> 125 ₺ | H20: =Veri[[#This Row],[Miktar]]*Veri[[#This Row],[Gerçek Maliyet]] -> 0 ₺
B21: Havalandırma | C21: Davlumbaz birimi: Kanallı Standart | D21: 1 | E21: 180.00 ₺ | G21: =Veri[[#This Row],[Miktar]]*Veri[[#This Row],[Tahmini Maliyet]] -> 180 ₺ | H21: =Veri[[#This Row],[Miktar]]*Veri[[#This Row],[Gerçek Maliyet]] -> 0 ₺
B22: Duvarlar | C22: Duvar kaplaması (fit kare miktarı) | D22: 70 | E22: 2.00 ₺ | G22: =Veri[[#This Row],[Miktar]]*Veri[[#This Row],[Tahmini Maliyet]] -> 140 ₺ | H22: =Veri[[#This Row],[Miktar]]*Veri[[#This Row],[Gerçek Maliyet]] -> 0 ₺
B23: Pencereler | C23: Sürgü | D23: 2 | E23: 120.00 ₺ | G23: =Veri[[#This Row],[Miktar]]*Veri[[#This Row],[Tahmini Maliyet]] -> 240 ₺ | H23: =Veri[[#This Row],[Miktar]]*Veri[[#This Row],[Gerçek Maliyet]] -> 0 ₺
B24: Diğer | G24: =Veri[[#This Row],[Miktar]]*Veri[[#This Row],[Tahmini Maliyet]] -> 0 ₺ | H24: =Veri[[#This Row],[Miktar]]*Veri[[#This Row],[Gerçek Maliyet]] -> 0 ₺
B25: Toplam | E25: =SUBTOTAL(109,Veri[Tahmini Maliyet]) -> 4,014.00 ₺ | F25: =SUBTOTAL(109,Veri[Gerçek Maliyet]) -> 0.00 ₺ | G25: =SUBTOTAL(109,Veri[Toplam Tahmini Maliyet]) -> 5,375.00 ₺ | H25: =SUBTOTAL(109,Veri[Toplam Gerçek Maliyet]) -> 0.00 ₺
B26: Ara toplam | G26: =SUBTOTAL(109,Veri[Toplam Tahmini Maliyet]) -> 5,375.00 ₺ | H26: =SUBTOTAL(109,Veri[Toplam Gerçek Maliyet]) -> 0.00 ₺
B27: Beklenmeyen Maliyetler- %30 ekle | G27: =G26*0.3 -> 1,612.50 ₺ | H27: =H26*0.3 -> 0.00 ₺
B28: Toplam | G28: =SUM(G26:G27) -> 6,987.50 ₺ | H28: =SUM(H26:H27) -> 0.00 ₺
